bitfinex/quotes_ETHUSD_20210401
["timestamp","ask_amount","ask_price","bid_price","bid_amount"]
[1617320990099,4.38811106,1971.7,1971.6,8.60934]
[1617320990499,4.38811106,1971.7,1971.6,1.0]
[1617320990902,11.38811106,1971.7,1971.6,1.0]
[1617320991103,25.9379102,1971.7,1971.6,0.0001]
[1617320991303,46.68312009,1971.7,1971.6,0.0001]
[1617320991502,46.68312009,1971.7,1971.2,0.0177778]
[1617320991503,26.4,1971.5,1971.2,0.0177778]
[1617320991706,26.4,1971.5,1971.1,0.2801052]
[1617320991707,26.04,1971.3,1971.1,0.2801052]
[1617320991908,50.85575149,1971.2,1971.0,1.38762371]
[1617320992132,50.85575149,1971.2,1970.9,11.556]
[1617320992133,26.4,1971.0,1970.6,1.52908849]
[1617320992334,11.86577842,1970.9,1970.6,1.0]
[1617320992532,6.12,1970.8,1970.3,3.556]
[1617320992736,0.287,1970.5,1970.1,1.08749117]
[1617320992935,20.74520989,1970.4,1970.1,0.93882405]
[1617320993133,7.93282974,1970.3,1970.1,0.93882405]
[1617320993331,15.32282974,1970.3,1970.1,0.93882405]
[1617320993735,41.69092974,1970.3,1970.1,0.93882405]
[1617320993932,18.37,1970.2,1970.1,0.93882405]
[1617320994133,12.25,1970.2,1970.1,0.93882405]
[1617320994532,16.76282974,1970.2,1970.1,0.93882405]
[1617320995160,26.6481,1970.3,1970.1,0.93882405]
[1617320995364,6.12,1970.2,1970.1,0.93882405]
[1617320995560,26.6481,1970.3,1970.1,0.93882405]
[1617320995760,3.84,1970.2,1970.1,0.93882405]
[1617320996960,26.6481,1970.3,1970.1,0.93882405]
[1617320998995,0.41,1970.2,1970.1,0.93882405]
[1617320999193,13.96,1970.2,1970.1,0.93882405]
[1617321001645,26.6481,1970.3,1970.1,0.93882405]
[1617321002438,16.36,1970.2,1970.1,0.93882405]
[1617321003044,6.12,1970.2,1970.1,0.93882405]
[1617321003239,12.67,1970.2,1970.1,0.93882405]
[1617321003440,6.12,1970.2,1970.1,0.93882405]
[1617321004839,11.02,1970.2,1970.1,0.93882405]
[1617321005249,12.22,1970.2,1970.1,0.93882405]
[1617321005449,12.6,1970.2,1970.1,0.93882405]
[1617321005851,7.7,1970.2,1970.1,0.93882405]
[1617321006450,6.5,1970.2,1970.1,0.93882405]
[1617321008274,13.5,1970.2,1970.1,0.93882405]
[1617321008674,13.12,1970.2,1970.1,0.93882405]
[1617321010278,13.5,1970.2,1970.1,0.93882405]
[1617321010502,14.7,1970.2,1970.1,0.93882405]
[1617321011299,13.5,1970.2,1970.1,0.93882405]
[1617321012700,14.7,1970.2,1970.1,0.93882405]
[1617321012899,13.5,1970.2,1970.1,0.93882405]
[1617321013127,13.12,1970.2,1970.1,0.93882405]
[1617321015963,6.12,1970.2,1970.1,0.93882405]
[1617321018780,12.5566,1970.2,1970.1,0.93882405]
[1617321020778,13.7566,1970.2,1970.1,0.93882405]
[1617321021625,14.1566,1970.2,1970.1,0.93882405]
[1617321022629,13.7566,1970.2,1970.1,0.93882405]
[1617321022827,21.37298,1970.2,1970.1,0.93882405]
[1617321023027,20.17298,1970.2,1970.1,0.93882405]
[1617321023229,6.4366,1970.2,1970.1,0.93882405]
[1617321023428,27.30409364,1970.3,1970.1,0.93882405]
[1617321023630,6.12,1970.2,1970.1,0.93882405]
[1617321026456,20.74520989,1970.2,1970.1,8.95301405]
[1617321026657,26.3681,1970.3,1970.1,13.46584379]
[1617321026856,0.93599364,1970.4,1970.2,27.70282974]
[1617321027058,0.93599364,1970.4,1970.3,26.8]
[1617321027255,0.93599364,1970.4,1970.3,26.94]
[1617321027661,16.6923,1970.9,1970.4,2.0294897]
[1617321027857,16.6923,1970.9,1970.6,0.39]
[1617321028055,16.6923,1970.9,1970.7,7.61059]
[1617321028259,16.6923,1970.9,1970.8,16.66282974]
[1617321028454,16.6923,1970.9,1970.8,17.05282974]
[1617321028655,16.6923,1970.9,1970.8,4.90282974]
[1617321029092,16.6923,1970.9,1970.8,0.39]
[1617321029292,16.6923,1970.9,1970.8,8.00024]
[1617321030293,16.6923,1970.9,1970.8,8.19103987]
[1617321031715,26.5071,1971.3,1970.8,8.19103987]
[1617321031908,26.7871,1971.3,1970.9,0.14]
[1617321032308,6.4,1971.2,1970.9,0.53]
[1617321032505,0.28,1971.2,1970.9,0.53]
[1617321032707,0.28,1971.2,1971.0,10.14624]
[1617321032907,4.0,1971.1,1971.0,10.14624]
[1617321033111,26.7871,1971.3,1971.0,10.14624]
[1617321034652,20.74520989,1971.2,1971.0,10.14624]
[1617321034865,20.74520989,1971.2,1970.9,10.28657]
[1617321035056,21.02520989,1971.2,1970.9,10.28657]
[1617321035656,21.43520989,1971.2,1970.8,0.19079987]
[1617321035855,6.12,1971.1,1970.8,0.19079987]
[1617321036054,6.78,1971.1,1970.8,0.19079987]
[1617321036255,4.18,1971.0,1970.8,0.19079987]
[1617321037260,0.28,1971.1,1970.8,0.19079987]
[1617321037459,0.28,1971.1,1970.8,0.14079987]
[1617321037460,27.5642,1971.1,1970.8,0.14079987]
[1617321037661,27.2842,1971.1,1970.8,0.53079987]
[1617321038061,27.2842,1971.1,1970.8,0.14079987]
[1617321038860,0.4,1971.0,1970.8,0.14079987]
[1617321039062,10.39,1970.9,1970.8,0.14079987]
[1617321039296,4.14,1970.9,1970.8,0.14079987]
[1617321040097,4.54,1970.9,1970.8,0.14079987]
[1617321040298,25.28520989,1970.9,1970.2,10.18800186]
[1617321040500,21.42520989,1970.9,1970.2,0.03797186]
[1617321040700,0.287,1970.7,1970.2,0.03797186]
[1617321040907,0.287,1970.5,1970.2,0.03797186]
[1617321041098,15.8667,1970.5,1970.2,0.03797186]
[1617321041697,27.748,1970.4,1970.2,0.03797186]
[1617321041938,40.868,1970.4,1970.1,0.93882405]
[1617321042137,41.148,1970.4,1970.1,0.93882405]
[1617321042335,6.12,1970.3,1970.1,0.93882405]
[1617321042536,26.86520989,1970.2,1970.1,0.93882405]
[1617321042935,20.74520989,1970.2,1970.1,0.93882405]
[1617321043934,21.13520989,1970.2,1970.1,0.93882405]
[1617321044537,20.74520989,1970.2,1970.1,0.93882405]
[1617321045340,27.74520989,1970.2,1970.1,0.93882405]
[1617321046758,29.33520989,1970.2,1970.1,0.93882405]
[1617321048204,28.13520989,1970.2,1970.1,0.93882405]
[1617321048403,21.13520989,1970.2,1970.1,0.93882405]
[1617321048807,28.75144989,1970.2,1970.1,0.93882405]
[1617321049403,35.75144989,1970.2,1970.1,0.93882405]
[1617321050008,28.75144989,1970.2,1970.1,0.93882405]
[1617321051206,35.75144989,1970.2,1970.1,0.93882405]
[1617321051409,35.36144989,1970.2,1970.1,0.93882405]
[1617321053226,28.36144989,1970.2,1970.1,0.93882405]
[1617321053428,20.74520989,1970.2,1970.1,0.93882405]
[1617321055233,20.74520989,1970.2,1970.1,1.05591748]
[1617321057036,27.17700989,1970.2,1970.1,1.05591748]
[1617321057663,6.4318,1970.2,1970.1,1.05591748]
[1617321057866,27.17700989,1970.2,1970.1,0.93882405]
[1617321058265,34.79292989,1970.2,1970.1,0.93882405]
[1617321058662,41.79292989,1970.2,1970.1,0.93882405]
[1617321059462,42.99292989,1970.2,1970.1,0.93882405]
[1617321060489,26.4,1970.1,1969.6,1.0]
[1617321060690,23.35,1969.7,1969.6,1.0]
[1617321060894,58.85340989,1969.7,1969.6,1.0]
[1617321061690,58.85340989,1969.7,1968.6,0.75397358]
[1617321061691,26.35,1969.6,1968.6,0.75397358]
[1617321061893,0.4,1969.1,1968.7,0.03797186]
[1617321062088,27.43760989,1969.0,1968.6,1.20194544]
[1617321062288,27.43760989,1969.0,1968.6,1.16397358]
[1617321062487,4.1,1968.9,1968.7,0.38]
[1617321063315,27.43760989,1969.0,1968.7,0.38]
[1617321063517,4.1,1968.9,1968.7,0.38]
[1617321063715,27.43760989,1969.0,1968.7,0.03]
[1617321063917,27.43760989,1969.0,1968.7,0.4]
[1617321064116,25.4848,1968.9,1968.7,0.4]
[1617321064317,3.58,1968.8,1968.6,0.89397358]
[1617321064916,25.4848,1968.9,1968.6,0.89397358]
[1617321065318,25.4848,1968.9,1968.8,0.1616164]
[1617321069364,28.0348,1968.9,1968.8,0.1616164]
[1617321070164,27.76177748,1968.9,1968.8,0.1616164]
[1617321073410,27.76177748,1968.9,1968.8,0.16817381]
[1617321073810,27.76177748,1968.9,1968.8,0.54817381]
[1617321074010,27.76177748,1968.9,1968.8,8.16718381]
[1617321074816,20.74520989,1969.3,1968.8,11.89028381]
[1617321075018,16.749,1969.6,1969.0,7.6165]
[1617321075215,16.749,1969.6,1969.5,11.64667559]
[1617321075414,16.749,1969.6,1969.5,8.59167559]
[1617321075614,16.749,1969.6,1969.5,13.03856709]
[1617321075813,1.2,1970.0,1969.5,13.03856709]
[1617321076052,1.2,1970.0,1969.5,8.59167559]
[1617321076244,1.25335308,1970.1,1969.7,0.14]
[1617321076451,1.2,1970.0,1969.7,0.14]
[1617321076648,0.4,1969.8,1969.5,7.61551]
[1617321076849,0.39,1969.7,1969.4,10.15401]
[1617321077046,21.14520989,1969.6,1969.4,10.15401]
[1617321077244,3.22,1969.5,1969.1,0.4]
[1617321077447,3.22,1969.5,1969.3,7.61762]
[1617321077448,0.28,1969.5,1969.3,7.61762]
[1617321079283,20.74520989,1969.6,1969.3,8.02762]
[1617321079484,20.74520989,1969.6,1969.3,7.61762]
[1617321079684,20.74520989,1969.6,1969.3,8.00762]
[1617321080086,27.3686,1969.5,1969.4,4.4468915]
[1617321080290,27.3686,1969.5,1969.4,11.02152049]
[1617321080486,27.3686,1969.5,1969.4,15.46841199]
[1617321080686,27.3686,1969.5,1969.4,0.57152049]
[1617321080885,27.3686,1969.5,1969.4,10.72618049]
[1617321081085,27.3686,1969.5,1969.4,10.34618049]
[1617321084108,29.9186,1969.5,1969.4,10.34618049]
[1617321085912,29.9186,1969.5,1969.4,0.19152049]
[1617321086534,50.66380989,1969.5,1969.4,0.19152049]
[1617321087136,51.06380989,1969.5,1969.4,0.19152049]
[1617321088938,52.26380989,1969.5,1969.4,0.19152049]
[1617321089362,51.06380989,1969.5,1969.4,0.19152049]
[1617321089963,52.26380989,1969.5,1969.4,0.19152049]
[1617321091386,53.61380989,1969.5,1969.4,0.19152049]
[1617321092232,53.21380989,1969.5,1969.4,0.19152049]
[1617321093433,53.62380989,1969.5,1969.4,0.19152049]
[1617321094235,61.24330989,1969.5,1969.4,0.19152049]
[1617321094835,62.44330989,1969.5,1969.4,0.19152049]
[1617321095035,61.24330989,1969.5,1969.4,0.19152049]
[1617321095236,0.05335308,1969.4,1968.9,0.19577052]
[1617321095434,0.39,1969.3,1968.9,0.19577052]
[1617321097037,0.4,1969.2,1968.9,0.19577052]
[1617321097240,21.12520989,1969.1,1968.9,0.19577052]
[1617321098040,49.05210989,1969.1,1968.9,0.19577052]
[1617321098442,48.67210989,1969.1,1968.9,0.57577052]
[1617321098840,51.22210989,1969.1,1968.9,0.57577052]
[1617321099241,51.22210989,1969.1,1968.9,0.19577052]
[1617321099664,51.22210989,1969.1,1968.9,7.81515052]
[1617321100264,51.22210989,1969.1,1968.9,8.19515052]
[1617321103895,30.4769,1969.1,1968.9,7.81515052]
[1617321105313,51.22210989,1969.1,1968.9,7.81515052]
[1617321106314,53.77210989,1969.1,1968.9,7.81515052]
[1617321109163,53.77210989,1969.1,1968.9,16.01030104]
[1617321110178,52.77210989,1969.1,1968.9,16.01030104]
[1617321110575,6.12,1969.0,1968.9,16.01030104]
[1617321110782,10.55468758,1969.0,1968.9,8.39092104]
[1617321111183,53.18210989,1969.1,1968.9,16.01026104]
[1617321111381,52.77210989,1969.1,1968.9,16.01026104]
[1617321112382,20.74520989,1969.0,1968.9,16.01026104]
[1617321113805,23.29520989,1969.0,1968.9,16.01026104]
[1617321115414,23.29520989,1969.0,1968.9,8.39092104]
[1617321117417,23.68520989,1969.0,1968.9,16.01013104]
[1617321118245,23.29520989,1969.0,1968.9,16.01013104]
[1617321120048,23.29520989,1969.0,1968.9,22.68063104]
[1617321120248,23.29520989,1969.0,1968.9,26.08063104]
[1617321120661,2.55,1969.0,1968.9,26.08063104]
[1617321121260,5.1,1969.0,1968.9,22.68063104]
[1617321121470,5.1,1969.0,1968.9,23.08063104]
[1617321122265,5.1,1969.0,1968.9,26.84063104]
[1617321123064,5.1,1969.0,1968.9,26.74063104]
[1617321123532,25.84520989,1969.5,1968.9,36.04989302]
[1617321123738,5.1,1969.5,1969.4,34.22204512]
[1617321123928,5.1,1969.5,1969.4,38.10204512]
[1617321124716,5.1,1969.5,1969.4,25.16722512]
[1617321124918,5.1,1969.5,1969.4,25.11722512]
[1617321126931,5.1,1969.5,1969.4,25.31421195]
[1617321128330,5.1,1969.5,1969.4,36.56421195]
[1617321128749,2.55,1970.0,1969.4,36.56421195]
[1617321128750,2.55,1970.0,1969.6,11.1252597]
[1617321128952,2.55,1970.0,1969.9,31.38457682]
[1617321129150,2.55,1970.0,1969.9,47.75807682]
[1617321129350,21.12303058,1970.9,1970.0,26.55]
[1617321129552,17.4343,1970.9,1970.6,0.39]
[1617321129750,17.4343,1970.9,1970.6,6.7784]
[1617321129949,17.1543,1970.9,1970.6,6.7784]
[1617321130348,17.1543,1970.9,1970.6,6.3884]
[1617321130549,17.1543,1970.9,1970.7,7.61018]
[1617321130749,17.1543,1970.9,1970.7,11.23018]
[1617321131574,17.1543,1970.9,1970.7,7.61018]
[1617321131975,17.1543,1970.9,1970.8,8.51857518]
[1617321132175,17.1543,1970.9,1970.8,0.11857518]
[1617321132376,17.1543,1970.9,1970.8,6.56857518]
[1617321132779,1.0,1970.9,1970.8,6.56857518]
[1617321132979,1.4,1970.9,1970.8,0.11857518]
[1617321133378,7.05,1970.9,1970.8,0.11857518]
[1617321133797,32.23310553,1970.9,1970.8,0.11857518]
[1617321134194,33.43310553,1970.9,1970.8,0.11857518]
[1617321135812,32.23310553,1970.9,1970.8,0.11857518]
[1617321136016,34.78310553,1970.9,1970.8,0.11857518]
[1617321136622,30.34520989,1970.9,1970.8,0.11857518]
[1617321137222,24.69520989,1970.9,1970.8,0.06857518]
[1617321137425,24.29520989,1970.9,1970.8,0.06857518]
[1617321137625,3.55,1970.9,1970.8,0.06857518]
[1617321137828,3.55,1970.9,1970.8,6.30517518]
[1617321138226,3.55,1970.9,1970.8,17.85517518]
[1617321138425,3.55,1970.9,1970.8,21.47517518]
[1617321138624,3.55,1970.9,1970.8,9.92517518]
[1617321138827,3.55,1970.9,1970.8,10.74307082]
[1617321139042,3.55,1970.9,1970.8,6.30517518]
[1617321140241,3.55,1970.9,1970.8,9.28517518]
[1617321140842,3.55,1970.9,1970.8,9.69517518]
[1617321141244,3.55,1970.9,1970.8,18.94517518]
[1617321142263,3.55,1970.9,1970.8,26.29517518]
[1617321142464,3.55,1970.9,1970.8,34.29517518]
[1617321142662,3.55,1970.9,1970.8,35.10377518]
[1617321143064,0.0001,1970.9,1970.8,42.10377518]
[1617321143465,2.5501,1970.9,1970.8,35.10377518]
[1617321144066,1.0,1971.4,1971.3,14.85]
[1617321144295,1.0,1971.4,1971.3,9.2861]
[1617321145092,1.0,1971.4,1971.3,17.39854362]
[1617321146917,1.0,1971.4,1971.3,17.58474332]
[1617321147321,0.23617527,1971.4,1971.3,17.58474332]
[1617321149421,0.23617527,1971.4,1971.3,25.58474332]
[1617321149845,0.23617527,1971.4,1971.3,17.58474332]
[1617321150852,2.78617527,1971.4,1971.3,17.58474332]
[1617321151051,2.78617527,1971.4,1971.3,25.58474332]
[1617321151247,2.78617527,1971.4,1971.3,36.81428689]
[1617321151451,2.78617527,1971.4,1971.3,38.01428689]
[1617321151649,2.78617527,1971.4,1971.3,26.78474332]
[1617321152890,1.0,1971.9,1971.5,34.15701]
[1617321153094,1.0,1971.9,1971.8,24.4]
[1617321153292,1.0,1971.9,1971.8,8.4]
[1617321153490,1.0,1971.9,1971.8,0.4]
[1617321153696,1.0,1971.9,1971.7,9.9197]
[1617321154292,1.0,1971.9,1971.8,12.806]
[1617321154493,1.0,1971.9,1971.8,5.2]
[1617321154693,6.6198988,1971.9,1971.4,10.14268]
[1617321154898,0.41,1971.5,1971.4,10.14268]
[1617321155094,7.21,1971.5,1971.4,10.14268]
[1617321155497,7.21,1971.5,1971.1,10.14422]
[1617321155696,22.71,1971.2,1970.9,9.32408794]
[1617321155896,18.09,1971.0,1970.9,9.32408794]
[1617321156299,0.38,1971.0,1970.9,9.32408794]
[1617321156494,27.0557,1971.0,1970.9,9.32408794]
[1617321156698,26.6757,1971.0,1970.9,9.32408794]
[1617321156895,26.6757,1971.0,1970.9,9.50577483]
[1617321157097,26.6757,1971.0,1970.9,0.18168689]
[1617321158134,29.2257,1971.0,1970.9,0.18168689]
[1617321159339,2.55,1971.0,1970.9,0.18168689]
[1617321159539,2.55,1971.0,1970.9,0.59168689]
[1617321159740,2.55,1971.0,1970.9,11.45168689]
[1617321160178,2.55,1971.0,1970.9,12.50168689]
[1617321160576,2.55,1971.0,1970.9,20.50168689]
[1617321160979,2.55,1971.0,1970.9,3.04168689]
[1617321161181,8.9327,1971.0,1970.9,3.04168689]
[1617321161584,9.3227,1971.0,1970.9,0.18168689]
[1617321162182,30.06790989,1971.0,1970.9,0.18168689]
[1617321162383,31.26790989,1971.0,1970.9,0.18168689]
[1617321163784,31.21790989,1971.0,1970.9,0.18168689]
[1617321163984,38.21790989,1971.0,1970.9,0.18168689]
[1617321164789,43.97904869,1971.0,1970.0,0.4]
[1617321164987,0.4,1970.5,1969.9,7.65259186]
[1617321165187,21.43520989,1970.4,1969.9,7.61462]
[1617321165423,28.589,1970.3,1969.8,0.39]
[1617321165637,28.969,1970.3,1969.7,14.3577]
[1617321165838,0.28,1970.2,1969.7,14.3577]
[1617321166035,3.32,1970.1,1969.7,14.3577]
[1617321166236,0.28,1970.2,1969.8,7.61488]
[1617321166437,27.389,1970.3,1969.8,12.62034084]
[1617321166637,27.389,1970.3,1970.1,0.39]
[1617321167036,27.389,1970.3,1970.2,0.13478746]
[1617321167841,27.389,1970.3,1970.2,7.74727746]
[1617321168239,27.789,1970.3,1970.2,7.74727746]
[1617321168640,27.789,1970.3,1970.2,0.13478746]
[1617321168641,28.989,1970.3,1970.2,0.13478746]
[1617321169640,49.73420989,1970.3,1970.2,0.13478746]
[1617321171847,48.53420989,1970.3,1970.2,0.13478746]
[1617321172448,49.73420989,1970.3,1970.2,0.13478746]
[1617321172648,49.33420989,1970.3,1970.2,0.13478746]
[1617321172846,51.88420989,1970.3,1970.2,0.13478746]
[1617321173871,50.68420989,1970.3,1970.2,0.30645135]
[1617321175473,50.68420989,1970.3,1970.2,0.17166389]
[1617321176303,52.26420989,1970.3,1970.2,0.17166389]
[1617321178925,51.88420989,1970.3,1970.2,0.17166389]
[1617321179327,50.68420989,1970.3,1970.2,7.78496389]
[1617321179530,50.68420989,1970.3,1970.2,12.54344666]
[1617321179531,2.55,1970.3,1970.2,12.54344666]
[1617321179727,2.55,1970.3,1970.2,22.02904666]
[1617321179929,2.55,1970.3,1970.2,25.34904666]
[1617321180324,5.1,1970.3,1970.2,33.34904666]
[1617321180549,5.1,1970.3,1970.2,34.21564666]
[1617321181957,5.1,1970.3,1970.2,25.34904666]
[1617321182359,5.1,1970.3,1970.2,28.98056389]
[1617321182566,5.1,1970.3,1970.2,11.10496389]
[1617321182959,5.1,1970.3,1970.2,3.49166389]
[1617321183358,5.1,1970.3,1970.2,0.17166389]
[1617321183563,52.31680989,1970.3,1970.2,0.17166389]
[1617321183793,53.51680989,1970.3,1970.2,0.17166389]
[1617321184789,53.92680989,1970.3,1970.2,0.02166389]
[1617321185387,53.51680989,1970.3,1970.2,0.02166389]
[1617321185789,52.71680989,1970.3,1970.2,0.02166389]
[1617321187616,63.34750989,1970.3,1970.2,0.02166389]
[1617321187820,65.89750989,1970.3,1970.2,0.02166389]
[1617321188421,65.89750989,1970.3,1970.2,3.89e-06]
[1617321188622,137.83000099,1970.3,1970.2,3.89e-06]
[1617321188820,140.83000099,1970.3,1970.2,3.89e-06]
[1617321189032,141.75470099,1970.3,1970.2,3.89e-06]
[1617321189632,13.86,1969.8,1969.7,14.3577]
[1617321189835,29.75450989,1969.8,1969.7,14.3577]
[1617321190631,54.76030989,1969.8,1969.7,14.3577]
[1617321192459,54.45143803,1969.8,1969.7,14.3577]
[1617321192859,53.25143803,1969.8,1969.7,14.3577]
[1617321193867,53.25143803,1969.8,1969.7,14.53538537]
[1617321194886,54.45143803,1969.8,1969.7,14.53538537]
[1617321195285,57.00143803,1969.8,1969.7,14.53538537]
[1617321195691,57.39143803,1969.8,1969.7,14.53538537]
[1617321196688,56.19143803,1969.8,1969.7,14.53538537]
[1617321197128,57.39143803,1969.8,1969.7,14.53538537]
[1617321198531,57.00143803,1969.8,1969.7,14.53538537]
[1617321200031,57.40143803,1969.8,1969.7,14.53538537]
[1617321200433,57.00143803,1969.8,1969.7,14.53538537]
[1617321200634,55.80143803,1969.8,1969.7,14.53538537]
[1617321201434,57.00143803,1969.8,1969.7,14.53538537]
[1617321202463,55.80143803,1969.8,1969.7,14.53538537]
[1617321202664,37.9151,1969.8,1969.7,14.53538537]
[1617321202871,37.9151,1969.8,1969.7,19.39084621]
[1617321203067,37.9151,1969.8,1969.7,22.45084621]
[1617321203266,30.1058,1969.8,1969.7,22.45084621]
[1617321203471,30.1058,1969.8,1969.7,29.28074621]
[1617321203472,5.1,1969.8,1969.7,29.28074621]
[1617321203863,5.1,1969.8,1969.7,39.43345621]
[1617321204685,5.1,1969.8,1969.7,34.96799537]
[1617321204885,5.1,1969.8,1969.7,34.57799537]
[1617321205285,5.1,1969.8,1969.7,31.51799537]
[1617321205484,5.1,1969.8,1969.7,21.36528537]
[1617321205885,5.1,1969.8,1969.7,14.53538537]
[1617321205886,25.53633803,1969.8,1969.7,14.53538537]
[1617321206487,26.73633803,1969.8,1969.7,14.53538537]
[1617321206885,52.86943803,1969.8,1969.7,14.53538537]
[1617321209513,26.75,1969.7,1969.6,1.0]
[1617321209717,42.95923,1969.7,1969.6,1.0]
[1617321210144,45.50923,1969.7,1969.6,1.0]
[1617321210571,44.30923,1969.7,1969.6,1.0]
[1617321210971,45.50923,1969.7,1969.6,1.0]
[1617321211570,38.50923,1969.7,1969.6,1.0]
[1617321213176,10.55923,1969.7,1969.6,1.0]
[1617321213573,2.94,1969.7,1969.6,1.0]
[1617321214175,23.37633803,1969.7,1969.6,1.0]
[1617321214375,24.57633803,1969.7,1969.6,1.0]
[1617321214776,32.19453803,1969.7,1969.6,1.0]
[1617321214976,30.60453803,1969.7,1969.6,1.0]
[1617321215193,22.98633803,1969.7,1969.6,1.0]
[1617321215990,23.37633803,1969.7,1969.6,1.0]
[1617321216595,24.57633803,1969.7,1969.6,1.0]
[1617321217592,27.12633803,1969.7,1969.6,1.0]
[1617321217812,34.74468803,1969.7,1969.6,1.0]
[1617321218009,33.54468803,1969.7,1969.6,1.0]
[1617321218309,27.12633803,1969.7,1969.6,1.0]
[1617321218909,34.74458803,1969.7,1969.6,1.0]
[1617321219513,26.75,1969.6,1969.4,0.07461665]
[1617321219713,31.29731307,1969.5,1969.4,0.07461665]
[1617321219911,37.20411307,1969.5,1969.4,0.07461665]
[1617321220734,44.82334307,1969.5,1969.4,0.07461665]
[1617321220936,41.87603,1969.5,1969.4,0.07461665]
[1617321221133,15.12603,1969.5,1969.4,0.07461665]
[1617321221334,13.92603,1969.5,1969.4,0.07461665]
[1617321221535,7.5068,1969.5,1969.4,0.07461665]
[1617321221742,7.1068,1969.5,1969.4,0.07461665]
[1617321222337,14.9568,1969.5,1969.4,0.07461665]
[1617321222736,15.3668,1969.5,1969.4,0.07461665]
[1617321223766,15.13584,1969.5,1969.4,0.07461665]
[1617321223969,13.52584,1969.5,1969.4,0.07461665]
[1617321224370,14.72584,1969.5,1969.4,0.07461665]
[1617321224567,15.12584,1969.5,1969.4,0.07461665]
[1617321224967,17.67584,1969.5,1969.4,0.07461665]
[1617321225368,20.63952833,1969.5,1969.4,0.07461665]
[1617321225800,17.67584,1969.5,1969.4,0.07461665]
[1617321227203,16.47584,1969.5,1969.4,0.07461665]
[1617321227402,17.67584,1969.5,1969.4,0.07461665]
[1617321228203,16.47584,1969.5,1969.4,0.07461665]
[1617321228609,17.67584,1969.5,1969.4,0.07461665]
[1617321230210,22.1733253,1969.5,1969.4,0.07461665]
[1617321231148,20.9733253,1969.5,1969.4,0.07461665]
[1617321231349,22.1733253,1969.5,1969.4,0.07461665]
[1617321232150,20.9733253,1969.5,1969.4,0.07461665]
[1617321232548,24.7233253,1969.5,1969.4,0.07461665]
[1617321232749,11.0068,1969.5,1969.4,0.07461665]
[1617321233151,25.53633803,1969.5,1969.4,0.07461665]
[1617321234360,26.73633803,1969.5,1969.4,0.07461665]
[1617321234961,34.35522803,1969.5,1969.4,0.07461665]
[1617321235165,34.35522803,1969.5,1969.4,0.46461665]
[1617321235362,25.53633803,1969.5,1969.4,0.46461665]
[1617321235561,25.53633803,1969.5,1969.4,0.07461665]
[1617321239412,25.53633803,1969.5,1969.4,8.08166665]
[1617321239413,5.1,1969.5,1969.4,8.08166665]
[1617321240015,7.65,1969.5,1969.4,8.08166665]
[1617321241210,7.65,1969.5,1969.4,10.84166665]
[1617321241429,7.65,1969.5,1969.4,15.33915195]
[1617321242037,0.0001,1969.5,1969.4,52.07694936]
[1617321242237,0.0001,1969.5,1969.4,63.20220906]
[1617321242434,0.0001,1969.5,1969.4,72.66551165]
[1617321242832,0.0001,1969.5,1969.4,79.66551165]
[1617321243032,0.0001,1969.7,1969.5,26.7]
[1617321243234,0.0001,1969.7,1969.6,61.51028916]
[1617321243437,33.8338,1970.3,1970.2,11.28]
[1617321243835,33.8338,1970.3,1970.0,8.86444658]
[1617321244084,33.8338,1970.3,1970.0,0.54]
[1617321244283,33.8338,1970.3,1970.2,7.61248]
[1617321245487,33.8338,1970.3,1970.2,7.99248]
[1617321245685,33.8338,1970.3,1970.2,10.71248]
[1617321246488,33.8338,1970.3,1970.2,10.82729267]
[1617321247292,36.3838,1970.3,1970.2,0.11481267]
[1617321247694,36.7938,1970.3,1970.2,0.11481267]
[1617321247900,58.25567233,1970.3,1970.2,0.11481267]
[1617321249514,57.23013803,1970.3,1970.2,0.11481267]
[1617321249713,56.82013803,1970.3,1970.2,0.11481267]
[1617321251933,57.84120598,1970.3,1970.2,0.11481267]
[1617321253136,56.82013803,1970.3,1970.2,0.11481267]
[1617321253538,57.21013803,1970.3,1970.2,0.11481267]
[1617321253937,63.46913803,1970.3,1970.2,0.11481267]
[1617321254562,64.66913803,1970.3,1970.2,0.11481267]
[1617321254763,72.66913803,1970.3,1970.2,0.11481267]
[1617321254964,66.01913803,1970.3,1970.2,0.11481267]
[1617321257617,65.62913803,1970.3,1970.2,0.11481267]
[1617321258617,66.03913803,1970.3,1970.2,0.11481267]
[1617321261416,65.62913803,1970.3,1970.2,0.11481267]
[1617321262018,66.01913803,1970.3,1970.2,0.11481267]
[1617321262223,68.56913803,1970.3,1970.2,0.11481267]
[1617321264037,68.17913803,1970.3,1970.2,0.11481267]
[1617321264840,68.57913803,1970.3,1970.2,0.11481267]
[1617321265062,68.52913803,1970.3,1970.2,0.11481267]
[1617321266060,68.12913803,1970.3,1970.2,0.11481267]
[1617321266264,76.14509803,1970.3,1970.2,0.11481267]
[1617321267260,75.74509803,1970.3,1970.2,0.11481267]
[1617321267460,76.14509803,1970.3,1970.2,0.11481267]
[1617321268288,26.7,1970.2,1969.4,0.07461665]
[1617321268488,0.4,1969.7,1969.4,0.07461665]
[1617321268689,20.43633803,1969.6,1969.4,0.07461665]
[1617321269088,26.6152,1969.5,1969.4,0.07461665]
[1617321269688,29.1652,1969.5,1969.4,0.07461665]
[1617321271134,35.8624,1969.5,1969.4,0.07461665]
[1617321271736,36.2524,1969.5,1969.4,0.07461665]
[1617321272133,56.68873803,1969.5,1969.4,0.07461665]
[1617321272734,64.30751803,1969.5,1969.4,0.07461665]
[1617321273560,64.30751803,1969.5,1969.4,0.25868254]
[1617321276271,63.91751803,1969.5,1969.4,0.25868254]
[1617321276472,56.29873803,1969.5,1969.4,0.25868254]
[1617321277081,58.84873803,1969.5,1969.4,0.25868254]
[1617321277474,59.23873803,1969.5,1969.4,0.25868254]
[1617321280491,58.84873803,1969.5,1969.4,0.25868254]
[1617321283539,38.4124,1969.5,1969.4,0.25868254]
[1617321284541,40.9624,1969.5,1969.4,0.25868254]
[1617321292017,43.5124,1969.5,1969.4,0.25868254]
[1617321292219,63.94873803,1969.5,1969.4,0.25868254]
[1617321294436,43.9124,1969.5,1969.4,0.25868254]